[Event "German Bundesliga 2024-25"]
[Site "Germany"]
[Date "2025.01.11"]
[Round "5.2"]
[White "Howell, David W L"]
[Black "L'Ami, Erwin"]
[Result "0-1"]
[Annotator "TA"]
[ECO "B38"]
[WhiteElo "2673"]
[BlackElo "2614"]
[PlyCount "100"]
[EventDate "2024.09.27"]
[EventType "team-tourn"]
[EventCountry "GER"]
[SourceTitle "playchess.com"]
[Source "ChessBase"]
[SourceQuality "1"]
[WhiteTeam "St. Pauli"]
[BlackTeam "SG Solingen"]
[TimeControl "40/5400+30:1800+30"]

{[%evp 15,100,0,31,23,32,31,27,35,35,31,35,32,43,31,24,45,37,32,51,53,52,52,80,17,19,12,14,-54,-54,-34,-47,-39,-19,0,0,-66,-62,-46,0,-54,-58,-118,-37,-152,-110,-153,-152,-147,-140,-162,-151,-151,-159,-137,-135,-186,-164,-178,-144,-176,-174,-189,-180,-263,-269,-416,-346,-336,-361,-413,-435,-442,-332,-510,-497,-522,-541,-913,-762,-931,-989,-1120,-1052,-29990,-29991,-29995,-29996]} 1. Nf3 {[%emt 0:00:16]} c5 {[%emt 0:01:22]} 2. c4 {[%emt 0:03:03]} Nc6 {[%emt 0:01:09]} 3. d4 {[%emt 0:03:41]} cxd4 {[%emt 0:00:17]} 4. Nxd4 {[%emt 0:00:08]} g6 {[%emt 0:02:58]} 5. e4 {[%emt 0:02:06]} Bg7 {[%emt 0:00:30]} 6. Be3 {[%emt 0:00:38]} Qb6 {[%emt 0:00:44]} 7. Nb3 {[%emt 0:04:32]} Qd8 {[%emt 0:00:25]} 8. Nd4 {[%emt 0:01:01]} Qb6 {[%emt 0:00:37][%csl LRb2,LRd4]} 9. Nb5 {[%emt 0:08:21]} Qa5+ {[%emt 0:06:05]} 10. N1c3 {[%emt 0:13:39]} Nf6 {[%emt 0:05:42]} 11. f3 {[%emt 0:05:12] White has an edge.} d6 {[%emt 0:05:52]} 12. Be2 {[%emt 0:02:02]} O-O {[%emt 0:04:47]} 13. O-O {[%emt 0:00:26]} a6 {[%emt 0:03:24]} 14. Nd4 {[%emt 0:00:35]} Nxd4 {[%emt 0:01:22]} 15. Bxd4 {[%emt 0:00:24]} Be6 {[%emt 0:02:59]} 16. b3 {[%emt 0:10:48]} Rfc8 {[%emt 0:19:41][%cal Ob7b5]} 17. f4 {[%emt 0:02:31][%cal Bf3f4,Bf4f5][%mdl 32]} b5 {[%emt 0:09:51]} 18. f5 {[%emt 0:11:20]} Bd7 {[%emt 0:01:13] [#]} 19. Kh1 {[%emt 0:15:34]} (19. Bxf6 $1 $16 exf6 20. Qd4 (20. Qxd6 Qxc3 21. Qxd7 Rd8 $15)) 19... Bc6 $11 {[%emt 0:04:46]} 20. a3 {[%emt 0:10:01]} Rab8 {[%emt 0:08:15]} (20... Bxe4 $2 21. Bxf6 (21. cxb5 $2 Rxc3 22. b4 Qc7 $19) 21... Bxf6 22. Nxe4 $18) (20... Nxe4 $2 21. Nxe4 bxc4 22. fxg6 Bxe4 23. gxf7+ Kf8 24. Bxg7+ (24. Bxc4 Qg5 $18) (24. bxc4 Bxd4 25. Qxd4 Qe5 $18) 24... Kxg7 25. Bxc4 $18 (25. bxc4 Rc7 $18)) 21. e5 {[%emt 0:02:40]} (21. Qe1 $11) 21... dxe5 $15 {[%emt 0:00:55]} 22. Bxe5 {[%emt 0:00:07]} bxc4 $1 {[%emt 0:03:21]} 23. Bxb8 {[%emt 0:00:01] [#] b4 is the strong threat.} Rxb8 {[%emt 0:01:35]} 24. b4 {[%emt 0:00:08]} Qe5 {[%emt 0:00:09]} 25. Bf3 {[%emt 0:02:28]} (25. Rc1 $11) 25... gxf5 {[%emt 0:04:42] Black is more active.} 26. Rc1 {[%emt 0:01:11]} (26. Bxc6 $2 {too greedy.} Ng4 (26... Qxc3 27. Rxf5 $11) 27. g3 Qxc3 $19) 26... Bxf3 $40 {[%emt 0:04:09][%mdl 128] White needs to defend precisely.} (26... Qc7 $15 {might be stronger.}) 27. Qxf3 {[%emt 0:00:01]} (27. gxf3 $11 e6 28. Qe1) 27... e6 {[%emt 0:00:23]} 28. g3 {[%emt 0:00:39] White is now going downhill.} ({White should try} 28. h3 $15) 28... Ng4 {[%emt 0:01:48]} ({Black should play} 28... Qc7 $17 29. Qf4 Qxf4 30. gxf4 Kf8) 29. Qf4 {[%emt 0:00:53]} (29. h3 $1 $15 Nf6 (29... Ne3 30. Rfe1 $14) 30. Rfd1) 29... Rc8 {[%emt 0:01:28]} 30. h3 {[%emt 0:00:20]} Ne3 {[%emt 0:01:30]} 31. Qxe5 {[%emt 0:00:26]} Bxe5 {[%emt 0:00:07]} 32. Rfe1 {[%emt 0:00:42]} Bxc3 {[%emt 0:00:32]} 33. Rxc3 $19 {[%emt 0:00:05][%mdl 4096] Endgame. KRR-KRN} Nd5 {[%emt 0:00:06]} 34. Rc2 {[%emt 0:00:25]} h5 {[%emt 0:00:45]} 35. Kg2 {[%emt 0:00:39]} (35. Rb1 $17) 35... Kg7 {[%emt 0:00:33]} 36. Kf3 {[%emt 0:00:37]} Kf6 {[%emt 0:00:28]} 37. Rd1 {[%emt 0:00:36]} c3 {[%emt 0:01:30]} 38. Rd4 {[%emt 0:00:01]} Ke5 {[%emt 0:00:37]} 39. Rd1 {[%emt 0:01:12]} (39. Rd3 {is a better defense.}) 39... Rc4 {[%emt 0:00:31]} 40. Re1+ {[%emt 0:00:13]} (40. Kf2 $142) 40... Kd6 {[%emt 0:00:46]} 41. Rb1 {[%emt 0:12:27]} Kc6 {[%emt 0:03:29]} 42. Ke2 {[%emt 0:03:25]} Re4+ {[%emt 0:03:38]} 43. Kf2 {[%emt 0:02:50]} Rd4 {[%emt 0:05:58]} 44. Ke1 {[%emt 0:10:56] Wards off Rd2} (44. Re2 $142) 44... Rd3 {[%emt 0:03:46]} 45. Rg2 {[%emt 0:01:08]} Ne3 {[%emt 0:02:35]} 46. Rg1 {[%emt 0:00:46] Hoping for Ke2.} Rd2 {[%emt 0:03:33]} 47. Rb3 {[%emt 0:01:26]} Rc2 {[%emt 0:01:08] aiming for ...Kd5.} 48. a4 {[%emt 0:00:02]} Kd5 {[%emt 0:01:08] ( -> ...Kc4)} 49. b5 {[%emt 0:00:06]} Kc4 {[%emt 0:01:20]} 50. bxa6 {[%emt 0:01:23]} Kd3 {[%emt 0:00:22] Weighted Error Value: White=0.58/Black=0.12 (very precise) .  Mistake:       	White=10    	Black=2      Inaccurate:     	White=2     	---        OK:         	White=13    	Black=22     Best:        	---       	Black=2      Strong:       	---       	Black=1} 0-1

[Event "German Bundesliga 2024-25"]
[Site "Germany"]
[Date "2025.01.11"]
[Round "5.2"]
[White "Svane, Frederik"]
[Black "Beerdsen, Thomas"]
[Result "1-0"]
[Annotator "TA"]
[ECO "C54"]
[WhiteElo "2654"]
[BlackElo "2508"]
[PlyCount "145"]
[EventDate "2024.09.27"]
[EventType "team-tourn"]
[EventCountry "GER"]
[SourceTitle "playchess.com"]
[Source "ChessBase"]
[SourceQuality "1"]
[WhiteTeam "Hamburg"]
[BlackTeam "Muelheim Nord"]
[TimeControl "40/5400+30:1800+30"]

{[%evp 12,145,22,17,18,4,25,18,24,0,20,21,24,15,30,0,0,15,40,0,46,48,45,27,49,44,50,22,34,19,29,30,45,-1,8,10,20,17,14,0,0,0,-9,0,20,9,64,64,114,109,123,119,127,91,103,64,68,53,64,54,83,41,58,4,35,0,0,0,0,0,29,0,188,191,169,50,44,0,0,16,202,207,202,201,216,208,210,217,589,575,603,591,606,172,182,223,236,222,205,233,258,241,236,236,217,203,104,24,24,24,5600,10804,9839,11414,29959,4614,29970,29973,29973,29974,29973,29972,29977,29978,29978,29971,29964,0,29976,29979,29977,29979,29978,29979,29974,11277]} 1. e4 {[%emt 0:00:04]} e5 {[%emt 0:00:06]} 2. Nf3 {[%emt 0:00:05]} Nc6 {[%emt 0:00:06]} 3. Bc4 {[%emt 0:00:06]} Nf6 {[%emt 0:00:12]} 4. d3 {[%emt 0:00:06]} Bc5 {[%emt 0:00:06]} 5. O-O {[%emt 0:00:39]} O-O {[%emt 0:02:24]} 6. Nbd2 {[%emt 0:00:30]} d6 {[%emt 0:07:35]} 7. c3 {[%emt 0:00:09]} a5 {[%emt 0:03:13]} 8. Re1 {[%emt 0:00:29]} Ba7 {[%emt 0:03:49]} 9. h3 {[%emt 0:01:43]} Ne7 {[%emt 0:02:46]} 10. d4 {[%emt 0:02:50]} Ng6 {[%emt 0:04:43]} 11. Bd3 {[%emt 0:10:06]} Re8 {[%emt 0:08:12]} 12. Bc2 {[%emt 0:07:46]} b5 {[%emt 0:16:50]} 13. Nf1 {[%emt 0:09:16]} Bb7 {[%emt 0:06:58]} 14. Ng3 {[%emt 0:02:11]} h6 {[%emt 0:08:37]} 15. Bd2 {[%emt 0:06:50]} Qe7 {[%emt 0:06:05]} (15... c5 $11) 16. Bd3 {[%emt 0:10:56]} Bc6 {[%emt 0:02:45]} 17. Qc2 {[%emt 0:01:11]} Rad8 {[%emt 0:03:56]} 18. Be3 {[%emt 0:04:08]} Bb6 {[%emt 0:01:40]} 19. Rad1 {[%emt 0:00:56]} Bd7 {[%emt 0:01:30]} 20. Bf1 {[%emt 0:01:59]} Qf8 {[%emt 0:02:38]} 21. b3 {[%emt 0:03:39]} b4 {[%emt 0:02:27]} 22. c4 {[%emt 0:05:10]} (22. Bc4 $14 {is more appropriate.}) 22... exd4 {[%emt 0:00:17]} (22... c5 $5) 23. Nxd4 {[%emt 0:00:05]} Ra8 {[%emt 0:03:09]} 24. Bc1 {[%emt 0:02:09]} a4 {[%emt 0:03:55]} 25. Bb2 {[%emt 0:00:16]} Ne5 {[%emt 0:00:57]} 26. Kh1 {[%emt 0:01:29]} axb3 {[%emt 0:00:35]} 27. axb3 {[%emt 0:00:02]} Ra2 {[%emt 0:00:09]} 28. Qb1 {[%emt 0:02:42]} Rxb2 {[%emt 0:02:54]} 29. Qxb2 $14 {[%emt 0:00:10]} Bc8 {[%emt 0:00:46]} ({Black should play} 29... h5 $14) 30. Qd2 $16 {[%emt 0:02:50]} Bb7 {[%emt 0:01:47]} 31. f3 {[%emt 0:05:30]} Bc5 {[%emt 0:01:07]} 32. Ngf5 {[%emt 0:02:37]} Kh7 {[%emt 0:00:54]} 33. Nb5 {[%emt 0:01:34]} g6 {[%emt 0:00:16]} 34. Ng3 {[%emt 0:04:37]} Qe7 {[%emt 0:00:56]} 35. Nd4 {[%emt 0:00:41]} Ned7 {[%emt 0:01:25]} 36. Qf4 {[%emt 0:04:55]} Ra8 {[%emt 0:00:45]} 37. Nb5 {[%emt 0:03:42]} ({Better is} 37. Nc2 $14) 37... Bb6 {[%emt 0:00:31]} 38. Qd2 {[%emt 0:02:01][%cal Of1d3]} Qe5 {[%emt 0:00:25]} 39. f4 {[%emt 0:01:21]} Qc5 {[%emt 0:01:15][%csl Gb6][%cal Rc5g1]} 40. Bd3 {[%emt 0:01:27][%cal Oe4e5]} Re8 {[%emt 0:00:42]} 41. Bc2 {[%emt 0:03:16]} Nh5 $2 {[%emt 0:11:56]} (41... h5 $11) 42. Nxh5 $18 {[%emt 0:03:01]} Qxh5 {[%emt 0:00:05]} 43. Qe2 {[%emt 0:02:59]} (43. Qxb4 $18 {[%cal Ob5c7]} Bc6 44. Qc3) 43... Qh4 $14 {[%emt 0:01:42][%cal Od7f6]} 44. Qg4 {[%emt 0:07:40]} Qxg4 {[%emt 0:00:31]} 45. hxg4 {[%emt 0:00:01][%cal Oe4e5]} Nf6 $2 {[%emt 0:01:52]} (45... Bc8 $11 {and Black is okay.}) 46. e5 $1 $18 {[%emt 0:02:09]} dxe5 {[%emt 0:01:27]} 47. Rxe5 {[%emt 0:03:56]} (47. c5 $6 Bxc5 (47... Nxg4 $2 48. cxb6 Nf2+ 49. Kg1 $18) 48. Rxe5 Rxe5 49. fxe5 Nxg4 $16) 47... Rxe5 {[%emt 0:02:07]} 48. fxe5 {[%emt 0:00:01]} Nxg4 {[%emt 0:00:07] ...Nf2+ would now be deadly.} 49. Rd7 $1 {[%emt 0:00:22][%csl LRc7,LRf7]} Ne3 $2 {[%emt 0:04:53] [#]} (49... Nxe5 {is more resistant.} 50. Re7 Nc6 51. Rxf7+ Kg8) 50. e6 $1 {[%emt 0:08:46]} Bxg2+ {[%emt 0:00:50]} (50... Bc8 51. Rxf7+) 51. Kh2 {[%emt 0:00:00]} Bc6 {[%emt 0:00:16][%cal Oc6d7] [#]} 52. c5 $1 {[%emt 0:02:06]} Bxc5 {[%emt 0:04:22]} (52... Bxb5 $2 53. Rxf7+ Kh8 54. cxb6 (54. Bxg6 $2 Bxc5 55. Kg3 Be8 $19) 54... cxb6 55. Be4 $18 (55. Bxg6 Be8 $18)) (52... Bxd7 $2 53. exd7 Bxc5 54. d8=Q $18 (54. d8=B $2 Nxc2 55. Bxc7 Na1 $19)) 53. Rxf7+ {[%emt 0:00:41]} Kg8 {[%emt 0:00:05]} 54. Rxc7 {[%emt 0:00:03]} (54. Nxc7 $2 Bd6+ (54... Nxc2 $2 55. Kh3 $19) 55. Kg1 Nxc2 $19) 54... Bxb5 {[%emt 0:01:21]} 55. Rxc5 {[%emt 0:00:02]} Nxc2 {[%emt 0:00:46]} 56. Rxb5 {[%emt 0:01:45][%mdl 4096] Endgame KR-KN} ({Don't take} 56. Rxc2 $6 Kf8 $16) 56... Kf8 {[%emt 0:00:46]} 57. Rb7 {[%emt 0:02:21]} g5 {[%emt 0:02:41]} 58. Kg3 {[%emt 0:00:27]} h5 {[%emt 0:00:13]} 59. e7+ {[%emt 0:00:55]} (59. Kf3 $16 {And now Ke4 would win.} Nd4+ 60. Ke4 Nxe6 61. Rxb4) 59... Kf7 $11 {[%emt 0:00:11]} 60. Kf3 {[%emt 0:00:01]} g4+ $2 {[%emt 0:01:51][%mdl 8192]} (60... h4 $11) 61. Kf4 $18 {[%emt 0:00:34]} g3 {[%emt 0:02:30]} 62. Kxg3 {[%emt 0:00:06] White wants to mate with Kf4.} Nd4 {[%emt 0:00:09]} 63. Rxb4 {[%emt 0:00:18]} Nc6 {[%emt 0:00:17]} 64. Rh4 {[%emt 0:01:20]} Kxe7 {[%emt 0:00:15]} 65. Rxh5 {[%emt 0:00:01]} Kd6 {[%emt 0:00:17]} 66. Kf4 {[%emt 0:00:36]} Nd4 {[%emt 0:00:28]} 67. b4 {[%emt 0:01:04][%cal Bb3b4,Bb4b5,Bb5b6][%mdl 32]} Nc2 {[%emt 0:00:12]} 68. Rb5 {[%emt 0:00:07]} Nd4 {[%emt 0:00:16]} 69. Rh5 {[%emt 0:00:48]} Nc2 $1 {[%emt 0:00:06]} 70. b5 $1 {[%emt 0:00:30]} Na3 {[%emt 0:00:49] [#]} 71. b6 $1 {[%emt 0:00:00]} Kc6 {[%emt 0:00:50] [#]} 72. Ra5 $1 {[%emt 0:00:02]} Nc4 {[%emt 0:00:10] [#]} 73. Rc5+ $3 {[%emt 0:00:02][%mdl 512]} 1-0

[Event "German Bundesliga 2024-25"]
[Site "Germany"]
[Date "2025.01.11"]
[Round "5.2"]
[White "Pultinevicius, Paulius"]
[Black "Fedoseev, Vladimir"]
[Result "0-1"]
[Annotator "TA"]
[ECO "D38"]
[WhiteElo "2579"]
[BlackElo "2712"]
[PlyCount "70"]
[EventDate "2024.09.27"]
[EventType "team-tourn"]
[EventCountry "GER"]
[SourceTitle "playchess.com"]
[Source "ChessBase"]
[SourceQuality "1"]
[WhiteTeam "Bad Mergentheim"]
[BlackTeam "Bayern Muenchen"]
[TimeControl "40/5400+30:1800+30"]

{[%evp 9,70,16,16,10,13,18,27,18,39,30,25,32,42,0,-4,-12,31,-6,0,0,0,0,0,0,-33,-9,-8,-20,-8,-22,-19,-23,-29,-53,-10,-77,-75,-64,-86,-67,-61,-67,-61,-76,-80,-179,-177,-164,-77,-240,-143,-156,-154,-241,-232,-306,-281,-297,-275,-427,-389,-29978,-29978]} 1. d4 {[%emt 0:00:02]} Nf6 {[%emt 0:00:38]} 2. c4 {[%emt 0:00:05]} e6 {[%emt 0:00:07]} 3. Nf3 {[%emt 0:00:03]} d5 {[%emt 0:00:15]} 4. Nc3 {[%emt 0:00:05]} Bb4 {[%emt 0:00:45]} 5. cxd5 {[%emt 0:00:05]} exd5 {[%emt 0:00:10]} 6. Bf4 {[%emt 0:00:04]} c5 {[%emt 0:00:57]} 7. g3 {[%emt 0:05:12]} Nc6 {[%emt 0:01:32]} 8. Bg2 {[%emt 0:05:38]} c4 {[%emt 0:00:46]} 9. O-O {[%emt 0:00:42]} O-O {[%emt 0:00:14]} 10. Bg5 {[%emt 0:00:09]} Be6 {[%emt 0:00:26]} 11. Ne1 {[%emt 0:00:06]} (11. Ne5 $14 {was preferable.}) 11... Be7 $11 {[%emt 0:10:12][%cal Ob7b5]} 12. Nc2 {[%emt 0:01:31]} Rc8 {[%emt 0:09:07][%cal Ob7b5]} 13. Re1 {[%emt 0:15:24]} Rc7 {[%emt 0:06:49]} 14. b3 {[%emt 0:23:56]} cxb3 {[%emt 0:10:13]} 15. axb3 {[%emt 0:00:04]} Nb4 {[%emt 0:00:18]} 16. Bxf6 {[%emt 0:08:26]} gxf6 {[%emt 0:00:34]} 17. Nxb4 $1 {[%emt 0:00:07]} Bxb4 {[%emt 0:00:13]} 18. Nb5 $1 {[%emt 0:00:12][%cal Bc3b5,Bb5a3,Ba3c2][%mdl 32]} Rc8 {[%emt 0:06:21]} 19. Rf1 $1 {[%emt 0:03:13]} Qb6 {[%emt 0:07:39]} 20. Na3 {[%emt 0:03:02]} (20. Nxa7 Ra8 21. e3 Be7 $19 (21... Rxa7 22. Rxa7 Qxa7 23. Bxd5 $17)) 20... Bc3 {[%emt 0:01:10][%csl LRa1,LRd4]} 21. Ra2 {[%emt 0:00:06]} Bxd4 {[%emt 0:01:44]} 22. Rd2 {[%emt 0:03:34]} (22. e3 $11 Be5 23. Bxd5 Bxd5 24. Qxd5) 22... Bc5 $36 {[%emt 0:02:38][%mdl 2048] Black is really pushing. Black is much more active. This pair of bishops is nice.} 23. Nc2 {[%emt 0:05:22]} Qxb3 {[%emt 0:00:52]} 24. Qa1 {[%emt 0:00:49]} Kg7 {[%emt 0:14:27]} (24... Bxf2+ {is interesting.} 25. Rxf2 Rxc2 26. Qxf6 Rfc8) 25. Nd4 {[%emt 0:06:13]} Qc4 {[%emt 0:01:51][%cal Oa7a5]} 26. Rfd1 {[%emt 0:02:16] [#]} a5 $1 {[%emt 0:02:37]} 27. Qb1 {[%emt 0:03:17]} (27. Nxe6+ $17 fxe6 28. e4) (27. e3 Bb4) 27... Bxd4 $19 {[%emt 0:06:18]} 28. Rxd4 {[%emt 0:00:05]} Qc2 {[%emt 0:00:41]} (28... Qxe2 $19 {has better winning chances.} 29. Bxd5 Bxd5 30. Rxd5 Rc2) 29. Qxb7 $2 {[%emt 0:00:46]} (29. Qa1 $17) 29... Qxe2 {[%emt 0:00:27]} ({Black should try} 29... Rc4 $1 $19 {[%cal Rc4d4] and ...Rxd4 would now be decisive} 30. Bf3 Rxd4 31. Rxd4 Bh3) 30. Bf1 $17 {[%emt 0:01:37] [#]} Qc2 $1 {[%emt 0:01:14]} 31. Ra1 {[%emt 0:01:10] [#]} (31. Qb6 $17) 31... Rb8 $1 $19 {[%emt 0:02:12]} 32. Qe7 {[%emt 0:01:10]} Rfe8 {[%emt 0:02:48]} 33. Qa3 {[%emt 0:01:06]} Rb1 {[%emt 0:01:01]} 34. g4 {[%emt 0:08:08]} (34. Rxb1 {was necessary.} Qxb1 35. Qd3) 34... Reb8 {[%emt 0:01:57]} 35. Qxa5 $2 {[%emt 0:02:10]} (35. Rxb1 $19 Rxb1 36. Kg2) 35... Qe2 {[%emt 0:01:29]} 0-1

[Event "German Bundesliga 2024-25"]
[Site "Germany"]
[Date "2025.01.11"]
[Round "5.3"]
[White "Santos Latasa, Jaime"]
[Black "Laurusas, Tomas"]
[Result "1-0"]
[Annotator "TA"]
[ECO "D15"]
[WhiteElo "2630"]
[BlackElo "2579"]
[PlyCount "95"]
[EventDate "2024.09.27"]
[EventType "team-tourn"]
[EventCountry "GER"]
[SourceTitle "playchess.com"]
[Source "ChessBase"]
[SourceQuality "1"]
[WhiteTeam "Bayern Muenchen"]
[BlackTeam "Bad Mergentheim"]
[TimeControl "40/5400+30:1800+30"]

{[%evp 10,95,40,31,32,20,10,0,29,28,29,21,65,72,77,77,81,59,115,50,65,65,56,52,65,42,23,27,56,58,60,54,71,60,100,63,108,113,91,91,145,133,128,28,49,18,68,62,91,68,71,69,70,66,66,60,156,25,45,35,35,35,47,37,95,121,107,112,150,144,130,99,227,111,219,201,208,212,206,195,291,275,457,268,330,319,443,444]} 1. c4 {[%emt 0:00:02]} c6 {[%emt 0:00:07]} 2. Nf3 {[%emt 0:00:07]} d5 {[%emt 0:00:12]} 3. e3 {[%emt 0:00:06]} Nf6 {[%emt 0:00:18]} 4. Nc3 {[%emt 0:00:06]} a6 {[%emt 0:01:54]} 5. d4 {[%emt 0:00:42]} g6 {[%emt 0:01:03]} 6. a4 {[%emt 0:02:00]} Bg7 {[%emt 0:01:00]} 7. a5 {[%emt 0:01:47]} O-O {[%emt 0:01:08]} 8. h3 {[%emt 0:00:36]} dxc4 {[%emt 0:16:30] The position is equal.} 9. Bxc4 {[%emt 0:02:46]} c5 {[%emt 0:00:10]} 10. d5 {[%emt 0:04:17]} Nbd7 {[%emt 0:08:24]} 11. O-O {[%emt 0:10:50]} b5 {[%emt 0:03:42]} 12. axb6 {[%emt 0:00:28]} Nxb6 {[%emt 0:00:03]} 13. Ba2 {[%emt 0:00:08]} Bf5 {[%emt 0:03:18]} (13... a5 $14) 14. g4 {[%emt 0:11:10]} (14. Ng5 $16) 14... Bd7 $14 {[%emt 0:03:32]} 15. e4 {[%emt 0:01:34]} Bb5 {[%emt 0:02:01]} 16. Re1 {[%emt 0:01:22]} Nfd7 {[%emt 0:04:34]} 17. e5 {[%emt 0:05:02]} c4 {[%emt 0:02:50]} 18. Bb1 {[%emt 0:02:46]} Nc5 {[%emt 0:10:31]} 19. Be3 {[%emt 0:06:48]} Rc8 {[%emt 0:00:36]} 20. Bc2 $36 {[%emt 0:01:24][%mdl 2048] White is pushing.} Qd7 {[%emt 0:06:42]} 21. Qd2 {[%emt 0:01:42]} Rfd8 {[%emt 0:00:36]} 22. Rad1 {[%emt 0:00:41]} Qb7 {[%emt 0:04:14][%cal Ob6d5] [#]} 23. Bxc5 $1 {[%emt 0:05:22]} Rxc5 {[%emt 0:00:13]} 24. Be4 {[%emt 0:01:11]} Qb8 {[%emt 0:03:28]} (24... Qc8 $142) 25. Qe3 $16 {[%emt 0:01:27]} Rcc8 {[%emt 0:02:53]} 26. Bb1 {[%emt 0:04:37]} (26. e6 $16 {And now exf7+ would win.} fxe6 27. Ng5 (27. dxe6 Rxd1 28. Rxd1 Qc7 $11)) 26... Be8 {[%emt 0:05:21]} ({Of course not} 26... e6 27. dxe6 fxe6 28. g5 $16) 27. Rd2 {[%emt 0:01:13]} (27. Qg5 $5) 27... Nd7 {[%emt 0:01:56]} ({Black should try} 27... Na4 $11) 28. h4 {[%emt 0:02:05]} Qb6 $1 {[%emt 0:04:30]} 29. Qf4 {[%emt 0:00:40]} f6 {[%emt 0:04:25]} 30. exf6 {[%emt 0:03:19]} Qxf6 {[%emt 0:00:37]} 31. Qe3 {[%emt 0:00:17] White is much more active.} Nc5 {[%emt 0:01:19]} 32. d6 {[%emt 0:02:56]} e6 {[%emt 0:03:19] [#] Dodges Nd5} (32... e5 $1 $14) 33. Red1 {[%emt 0:01:43]} ({White has to play} 33. Rd4 $1 $16 {[%cal Rd4f4] Rf4! is the strong threat.} Qf8 34. Rxc4) 33... Bb5 {[%emt 0:02:39]} 34. g5 {[%emt 0:02:08]} Qf7 {[%emt 0:00:08]} 35. Ne5 {[%emt 0:01:55] Dodges Bc6} Bxe5 {[%emt 0:01:08]} 36. Qxe5 {[%emt 0:00:06]} Nd7 {[%emt 0:00:10]} ({Black should play} 36... Rf8 $14) 37. Qe3 {[%emt 0:00:28]} Rf8 {[%emt 0:00:29]} 38. Re1 {[%emt 0:01:41]} Rce8 {[%emt 0:01:05]} 39. Be4 {[%emt 0:00:36] Strongly threatening Nxb5.} Ne5 {[%emt 0:01:43]} 40. Kg2 {[%emt 0:04:03]} Qd7 {[%emt 0:01:11]} (40... Qf4 $16 {was called for.}) 41. Qc5 {[%emt 0:33:34]} (41. f4 $18 Nd3 42. Bxd3 cxd3 43. Nxb5 Qxb5 44. Qxd3 (44. Rxd3 e5 $14) 44... Qxd3 45. Rxd3) 41... Qg7 {[%emt 0:10:12]} (41... Nd3 $16 {keeps fighting.} 42. Bxd3 cxd3 43. Nxb5 Rf5) 42. Nxb5 $18 {[%emt 0:00:00]} axb5 {[%emt 0:00:07]} 43. Qxb5 {[%emt 0:00:00]} Rb8 {[%emt 0:00:11]} 44. Qc5 {[%emt 0:00:00]} Rfc8 {[%emt 0:00:08]} (44... Rbd8 {was necessary.} 45. Kg3 Rc8) 45. Qd4 {[%emt 0:00:00][%cal Oe4d5]} Nd7 $2 {[%emt 0:00:11]} (45... Rd8 46. Ree2 Rbc8) 46. Qxg7+ {[%emt 0:00:00]} Kxg7 {[%emt 0:00:06] [#]} 47. Bd5 $1 {[%emt 0:00:00][%mdl 512]} Nf8 {[%emt 0:09:56]} (47... exd5 48. Re7+) 48. d7 {[%emt 0:00:00] Weighted Error Value: White=0.21 (precise) /Black=0.34.  Mistake:       	White=4     	Black=9      Inaccurate:     	White=1     	Black=7      OK:         	White=20    	Black=14     Best:        	White=3     	Black=1      Strong:       	White=1     	Black=1} (48. Bxe6 Re8 49. Rde2 Nxe6 50. Rxe6 Rxe6 51. Rxe6 h5) 1-0